fUSD/lending_fUSD_20260315
["ID","MTS","AMOUNT","RATE_DAILY","PERIOD"]
[408419147,1773593447891,-792.98,0.00040547,7]
[408419148,1773593447900,-792.98,0.00040547,7]
[408419149,1773593447910,-792.98,0.00040547,7]
[408419150,1773593447921,-792.98,0.00040547,7]
[408419151,1773593447930,-190.35794461,0.00040547,7]
[408419152,1773593447939,-792.98,0.00040547,7]
[408419153,1773593447948,-792.98,0.00040547,7]
[408419154,1773593447957,-792.98,0.00040547,7]
[408419155,1773593447966,-792.98,0.00040547,7]
[408419156,1773593447974,-792.98,0.00040547,7]
[408419157,1773593447983,-792.98,0.00040547,7]
[408419158,1773593447992,-792.98,0.00040547,7]
[408419159,1773593448001,-793.18239113,0.00040547,7]
[408419160,1773593448012,-500.0,0.00040547,7]
[408419161,1773593448025,-500.0,0.00040547,7]
[408419162,1773593448034,-500.0,0.00040547,7]
[408419163,1773593448044,-500.0,0.00040547,7]
[408419164,1773593448053,-500.0,0.00040547,7]
[408419165,1773593448063,-500.0,0.00040547,7]
[408419166,1773593448072,-500.0,0.00040547,7]
[408419167,1773593448081,-500.0,0.00040547,7]
[408419168,1773593448091,-500.0,0.00040547,7]
[408419169,1773593448100,-500.0,0.00040547,7]
[408419170,1773593448110,-500.0,0.00040547,7]
[408419171,1773593448119,-500.0,0.00040547,7]
[408419172,1773593448128,-500.0,0.00040547,7]
[408419173,1773593448138,-500.0,0.00040547,7]
[408419174,1773593448146,-500.0,0.00040547,7]
[408419175,1773593448155,-500.0,0.00040547,7]
[408419176,1773593448164,-500.0,0.00040547,7]
[408419177,1773593448173,-500.0,0.00040547,7]
[408419178,1773593448182,-500.0,0.00040547,7]
[408419179,1773593448191,-637.69112615,0.00040547,7]
[408419180,1773593448200,-500.0,0.00040547,7]
[408419181,1773593448208,-158.7945886,0.00040547,7]
[408419182,1773593448213,-500.0,0.00040547,7]
[408419183,1773593448220,-500.0,0.00040547,7]
[408419184,1773593448226,-500.0,0.00040547,7]
[408419185,1773593448233,-500.0,0.00040547,7]
[408419186,1773593448239,-500.0,0.00040547,7]
[408419187,1773593448246,-500.0,0.00040547,7]
[408419188,1773593448252,-500.0,0.00040547,7]
[408419189,1773593448259,-500.0,0.00040547,7]
[408419190,1773593448265,-500.0,0.00040547,7]
[408419191,1773593448271,-500.0,0.00040547,7]
[408419192,1773593448277,-500.0,0.00040547,7]
[408419193,1773593448283,-500.0,0.00040547,7]
[408419194,1773593448290,-500.0,0.00040547,7]
[408419195,1773593448296,-500.0,0.00040547,7]
[408419196,1773593448302,-187.64928058,0.00040547,7]
[408419197,1773593448308,-189.43564541,0.00040547,7]
[408419198,1773593448315,-250.28151239,0.00040547,7]
[408419199,1773593448328,-500.0,0.00040547,7]
[408419200,1773593448340,-500.0,0.00040547,7]
[408419201,1773593448352,-500.0,0.00040547,7]
[408419202,1773593448363,-169.60923278,0.00040547,7]
[408419203,1773593448377,-500.0,0.00040547,7]
[408419204,1773593448387,-500.0,0.00040547,7]
[408419205,1773593448399,-537.83120585,0.00040547,7]
[408419206,1773593448416,-169.30047091,0.00040547,7]
[408419207,1773593448428,-409.85145004,0.00040547,7]
[408419208,1773593448440,-294.60928452,0.00040547,7]
[408419209,1773593448451,-553.12197255,0.00040547,7]
[408419210,1773593448464,-500.0,0.00040547,7]
[408419211,1773593448479,-500.0,0.00040547,7]
[408419212,1773593448494,-500.0,0.00040547,7]
[408419213,1773593448511,-500.0,0.00040547,7]
[408419214,1773593448525,-500.0,0.00040547,7]
[408419215,1773593448539,-500.0,0.00040547,7]
[408419216,1773593448554,-500.0,0.00040547,7]
[408419217,1773593448571,-500.0,0.00040547,7]
[408419218,1773593448583,-500.0,0.00040547,7]
[408419219,1773593448596,-500.0,0.00040547,7]
[408419220,1773593448612,-500.0,0.00040547,7]
[408419221,1773593448623,-500.0,0.00040547,7]
[408419222,1773593448636,-500.0,0.00040547,7]
[408419223,1773593448649,-500.0,0.00040547,7]
[408419224,1773593448664,-500.0,0.00040547,7]
[408419225,1773593448676,-544.24431645,0.00040547,7]
[408419226,1773593448689,-185.6093357,0.00040547,7]
[408419227,1773593448703,-674.4,0.00040547,2]
[408419228,1773593448717,-674.4,0.00040547,2]
[408419229,1773593448730,-674.4,0.00040547,2]
[408419230,1773593448745,-674.4,0.00040547,2]
[408419231,1773593448759,-519.38203513,0.00040547,2]
[408419232,1773593449045,-155.01796487,0.00040547,2]
[408419233,1773593449278,-220.03903513,0.00040547,2]
[408419255,1773594002925,481.28160146,8e-05,2]
[408419367,1773594550133,-250.0,0.00015,2]
[408419368,1773594550153,-685.5276,0.000162,5]
[408419369,1773594563121,-439.91310921,0.000162,5]
[408419370,1773594566098,-2976.53687494,0.000162,5]
[408419371,1773594566119,-1200.0,0.00016499,2]
[408419372,1773594566139,-150.0,0.000165,2]
[408419373,1773594566163,-203.46396901,0.000165,2]
[408419374,1773594566184,-2500.0,0.000165,2]
[408419375,1773594566205,-2500.0,0.000165,2]
[408419376,1773594566225,-150.0,0.00017,30]
[408419377,1773594566245,-660.79233594,0.00017,2]
[408419378,1773594569084,-296.63720685,0.00017,2]
[408419393,1773594631477,-474.12914604,0.00017,2]
[408419394,1773594631583,-3123.97102974,0.00017,2]
[408419395,1773594631592,-517.0,0.00017,2]
[408419396,1773594631602,-784.55377187,0.00017808,2]
[408419397,1773594631611,-1200.0,0.00017899,2]
[408419398,1773594631621,-412.8427638,0.000179,2]
[408419399,1773594631630,-412.8427638,0.000179,2]
[408419400,1773594631639,-412.8427638,0.000179,2]
[408419401,1773594631649,-412.8427638,0.000179,2]
[408419402,1773594631659,-13461.28537283,0.00018,5]
[408419403,1773594631669,-2333.258,0.00018,2]
[408419404,1773594631679,-177.87,0.00018,2]
[408419405,1773594631688,-499.999999,0.00018,2]
[408419406,1773594631698,-267.92,0.00018382,2]
[408419407,1773594631708,-200.0,0.00018404,2]
[408419408,1773594631717,-200.0,0.000185,2]
[408419409,1773594631727,-181.53,0.00018502,2]
[408419410,1773594631737,-150.0,0.00018503,2]
[408419411,1773594631747,-657.0,0.00018599,2]
[408419413,1773594631756,-500.0,0.000186,2]
[408419414,1773594631766,-500.0,0.000186,2]
[408419415,1773594631776,-500.0,0.000186,2]
[408419416,1773594631786,-500.0,0.000186,2]
[408419418,1773594631795,-500.0,0.000186,2]
[408419420,1773594631804,-500.0,0.000186,2]
[408419421,1773594631814,-500.0,0.000186,2]
[408419422,1773594631823,-500.0,0.000186,2]
[408419423,1773594631833,-500.0,0.000186,2]
[408419424,1773594631842,-500.0,0.000186,2]
[408419425,1773594631852,-500.0,0.000186,2]
[408419426,1773594631862,-500.0,0.000186,2]
[408419427,1773594631871,-500.0,0.000186,2]
[408419428,1773594631881,-724.863084,0.000186,2]
[408419429,1773594631892,-500.0,0.000186,2]
[408419430,1773594631901,-500.0,0.000186,2]
[408419431,1773594631911,-500.0,0.000186,2]
[408419432,1773594631921,-500.0,0.000186,2]
[408419433,1773594631930,-500.0,0.000186,2]
[408419434,1773594631939,-747.23546138,0.000186,2]
[408419435,1773594631949,-500.0,0.00018752,2]
[408419436,1773594631960,-3240.0,0.0001885,2]
[408419437,1773594631969,-2000.0,0.00018955,2]
[408419438,1773594631978,-200.0,0.000194,7]
[408419439,1773594631987,-181.53,0.00019427,2]
[408419440,1773594631997,-690.0,0.0001944,2]
[408419441,1773594632007,-15838.36016754,0.000195,2]
[408419442,1773594632016,-500.0,0.000195,7]
[408419443,1773594632026,-1944.3742,0.00019534,2]
[408419444,1773594632036,-500.0,0.00019573,2]
[408419445,1773594632045,-500.0,0.00019573,2]
[408419446,1773594632054,-500.0,0.00019573,2]
[408419447,1773594632064,-500.0,0.00019573,2]
[408419448,1773594632073,-500.0,0.00019573,2]
[408419449,1773594632082,-500.0,0.00019573,2]
[408419450,1773594632092,-693.56,0.0001959,3]
[408419451,1773594632101,-500.0,0.00019599,2]
[408419452,1773594632110,-500.0,0.00019599,2]
[408419453,1773594632119,-500.0,0.00019599,2]
[408419454,1773594632129,-500.0,0.00019599,2]
[408419455,1773594632138,-500.0,0.00019599,2]
[408419456,1773594632147,-500.0,0.00019599,2]
[408419457,1773594632157,-500.0,0.00019599,2]
[408419458,1773594632166,-500.0,0.00019599,2]
[408419459,1773594632175,-500.0,0.00019599,2]
[408419460,1773594632184,-500.0,0.00019599,2]
[408419462,1773594632194,-500.0,0.00019599,2]
[408419464,1773594632203,-500.0,0.00019599,2]
[408419466,1773594632212,-500.0,0.00019599,2]
[408419468,1773594632221,-591.74095977,0.00019599,2]
[408419470,1773594632230,-500.0,0.00019599,2]
[408419472,1773594632239,-500.0,0.00019599,2]
[408419474,1773594632248,-500.0,0.00019599,2]
[408419475,1773594632258,-500.0,0.00019599,2]
[408419477,1773594632266,-500.0,0.00019599,2]
[408419479,1773594632275,-550.0,0.00019599,2]
[408419481,1773594632284,-500.0,0.00019599,2]
[408419483,1773594632293,-500.0,0.00019599,2]
[408419485,1773594632302,-500.0,0.00019599,2]
[408419487,1773594632312,-500.0,0.00019599,2]
[408419489,1773594632321,-500.0,0.00019599,2]
[408419491,1773594632331,-500.0,0.00019599,2]
[408419493,1773594632340,-2503.69656434,0.00019599,2]
[408419495,1773594632352,-62147.8933,0.000196,2]
[408419497,1773594632361,-800.0,0.000196,7]
[408419499,1773594632370,-690.0,0.00019605,2]
[408419501,1773594632379,-1680.0,0.00019628,2]
[408419503,1773594632388,-551.8398,0.00019699,2]
[408419505,1773594632398,-1100.0,0.000197,7]
[408419507,1773594632408,-196.61,0.00019741,2]
[408419509,1773594632416,-690.0,0.00019759,2]
[408419511,1773594632427,-1400.0,0.000198,7]
[408419513,1773594632437,-2500.0,0.000198,2]
[408419515,1773594632446,-690.0,0.00019866,2]
[408419517,1773594632456,-500.0,0.00019873,2]
[408419519,1773594632465,-500.0,0.00019873,2]
[408419520,1773594632476,-8554.70248824,0.00019885,2]
[408419521,1773594632485,-8554.7024882,0.00019887,2]
[408419522,1773594632494,-2813.20939736,0.00019888,2]
[408419523,1773594632506,-5741.49309084,0.00019888,2]
[408419524,1773594632516,-2963.09085987,0.0001989,2]
[408419525,1773594632533,-5591.61162833,0.0001989,2]
[408419526,1773594632683,-1552.57568989,0.00019892,2]
[408419527,1773594637570,-822.83,0.00019892,2]
[408419528,1773594637675,-739.47535606,0.00019892,2]
[408419729,1773594639762,-5439.82144225,0.00019892,2]
[408419731,1773594639773,-8554.7024882,0.00019893,2]
[408419732,1773594639782,-8554.7024882,0.00019895,2]
[408419734,1773594639792,-8554.7024882,0.00019897,2]
[408419736,1773594639803,-8554.7024882,0.00019898,2]
[408419739,1773594639814,-1000.0,0.00019899,2]
[408419740,1773594639823,-50127.15616202,0.000199,2]
[408419742,1773594639833,-3664.6311,0.000199,2]
[408419744,1773594639843,-200.0,0.000199,7]
[408419746,1773594639852,-1187.84092106,0.000199,2]
[408419748,1773594639862,-476.71135696,0.000199,2]
[408419750,1773594639872,-3467.30007748,0.000199,2]
[408419752,1773594639882,-641.955223,0.000199,2]
[408419754,1773594639892,-8554.7024882,0.000199,2]
[408419756,1773594639902,-690.0,0.00019947,2]
[408419758,1773594639911,-19258.65683877,0.0001995,15]
[408419760,1773594639921,-690.0,0.00019952,2]
[408419762,1773594639931,-500.0,0.00019973,2]
[408419765,1773594639943,-500.0,0.00019973,2]
[408419767,1773594639952,-500.0,0.00019973,2]
[408419769,1773594639962,-150.23101527,0.00019973,2]
[408419771,1773594639971,-500.0,0.00019979,2]
[408419773,1773594639979,-193.09399793,0.00019979,2]
[408419775,1773594639988,-631.36774301,0.00019979,2]
[408419776,1773594639998,-163.69467431,0.00019979,2]
[408419779,1773594640007,-500.0,0.00019979,2]
[408419780,1773594640016,-500.0,0.00019979,2]
[408419782,1773594640026,-613.19211214,0.00019979,2]
[408419784,1773594640035,-457.64596179,0.00019979,2]
[408419785,1773594640044,-611.89355773,0.00019979,2]
[408419786,1773594640053,-500.0,0.00019979,2]
[408419787,1773594640062,-500.0,0.00019979,2]
[408419788,1773594640072,-500.0,0.00019979,2]
[408419789,1773594640082,-38374.06488379,0.0001998,2]
[408419790,1773594640091,-168.0,0.00019985,2]
[408419791,1773594640100,-655.27117682,0.0001999,2]
[408419792,1773594640110,-655.27117682,0.0001999,2]
[408419793,1773594640118,-655.27117682,0.0001999,2]
[408419794,1773594640128,-151.0,0.00019997,2]
[408419795,1773594640137,-300.0,0.00019999,2]
[408419796,1773594640146,-685.06941575,0.00019999,2]
[408419797,1773594640155,-300.0,0.00019999,2]
[408419798,1773594640164,-666.0,0.00019999,2]
[408419799,1773594640174,-500.0,0.00019999,2]
[408419800,1773594640183,-500.0,0.00019999,2]
[408419801,1773594640192,-500.0,0.00019999,2]
[408419802,1773594640201,-500.0,0.00019999,2]
[408419803,1773594640212,-500.0,0.00019999,2]
[408419804,1773594640222,-500.0,0.00019999,2]
[408419805,1773594640231,-539.6122178,0.00019999,2]
[408419806,1773594640241,-500.0,0.00019999,2]
[408419807,1773594640251,-500.0,0.00019999,2]
[408419808,1773594640260,-500.0,0.00019999,2]
[408419809,1773594640270,-500.0,0.00019999,2]
[408419810,1773594640279,-1199.98023778,0.00019999,5]
[408419811,1773594640289,-500.0,0.00019999,2]
[408419813,1773594640299,-500.0,0.00019999,2]
[408419815,1773594640308,-615.8329075,0.00019999,2]
[408419816,1773594640318,-1068.96506983,0.00019999,5]
[408419819,1773594640327,-1068.96506983,0.00019999,5]
[408419821,1773594640338,-500.0,0.00019999,2]
[408419823,1773594640349,-500.0,0.00019999,2]
[408419824,1773594640364,-500.0,0.00019999,2]
[408419826,1773594640373,-500.0,0.00019999,2]
[408419828,1773594640383,-166.647,0.00019999,2]
[408419830,1773594640394,-4536927.4275169,0.0002,2]
[408419831,1773594640403,-45648.18585638,0.0002,2]
[408419833,1773594640412,-500.0,0.0002,2]
[408419835,1773594640422,-435.0,0.0002,2]
[408419837,1773594640432,-1173.17447297,0.0002,30]
[408419839,1773594640440,-99649.999999,0.0002,2]
[408419841,1773594640449,-178771.61295173,0.0002,2]
[408419844,1773594640467,-1219.17117707,0.0002,2]
[408419846,1773594640478,-616.0,0.0002,2]
[408419850,1773594640510,-588.60022337,0.0002,2]
[408420057,1773594642580,-987.61314542,0.0002,2]
[408420076,1773594642685,-1456.83914678,0.0002,2]
[408420079,1773594642697,-292495.03803111,0.0002,2]
[408420095,1773594642843,-90317.0226084,0.0002,2]
[408420098,1773594642854,-98188.44683561,0.0002,2]
[408420244,1773594645448,-4510.93270545,0.0002,2]
[408420245,1773594645853,-5231.15770499,0.0002,2]
[408420372,1773594656749,160.0,0.00019,120]
[408420373,1773594800107,1678.76,0.00010701,2]
[408420374,1773594800186,1678.76,0.00011265,2]
[408420394,1773595354789,-1232.0,0.00011828,2]
[408420397,1773595651154,-277.7176485,0.00011828,2]
[408420398,1773595747110,-169.0423515,0.00011828,2]
[408420399,1773595747132,-1678.76,0.00012391,2]
[408420400,1773595747153,-1678.76,0.00012954,2]
[408420401,1773595747174,-200.0,0.00013003,2]
[408420402,1773595747196,-151.0,0.00013003,2]
[408420403,1773595747218,-151.0,0.00013003,2]
[408420404,1773595747240,-300.71717058,0.00013003,2]
[408420405,1773595747260,-1200.0,0.00013009,2]
[408420406,1773595747281,-2016.11325978,0.00013011,2]
[408420407,1773595747301,-266.33122354,0.00013011,2]
[408420408,1773595747322,-500.0,0.000131,2]
[408420409,1773595747343,-584.42974455,0.000131,2]
[408420410,1773595747365,-1678.76,0.00013518,2]
[408420411,1773595747386,-500.0,0.00013648,2]
[408420412,1773595747408,-1678.76,0.00014081,2]
[408420413,1773595747433,-1173.0,0.0001431,2]
[408420414,1773595747456,-1678.76,0.00014644,2]
[408420415,1773595747477,-1678.76,0.00015207,2]
[408420416,1773595747499,-1678.76,0.00015771,2]
[408420417,1773595747521,-1678.76,0.00016334,2]
[408420418,1773595747541,-1678.76,0.00016897,2]
[408420419,1773595747563,-2000.0,0.00016937,2]
[408420420,1773595747586,-517.0,0.00017,2]
[408420421,1773595747607,-162.99,0.00017332,2]
[408420422,1773595747629,-1475.98449826,0.00017349,2]
[408420424,1773595755082,-24.01550174,0.00017349,2]
[408420425,1773595755103,-1678.76,0.0001746,2]
[408420426,1773595755122,-166.66,0.00017704,2]
[408420442,1773595831641,-314.17621239,0.00018023,2]
[408420443,1773595831653,-1364.58378761,0.00018023,2]
[408420444,1773595831663,-583.56965981,0.0001805,2]
[408420445,1773595831695,-16.43034019,0.0001805,2]
[408420446,1773595831708,-166.66,0.00018076,2]
[408420447,1773595831718,-504.62,0.00018249,2]
[408420448,1773595831730,-135.93065981,0.00018449,2]
[408420449,1773595831742,-30.72934019,0.00018449,2]
[408420450,1773595831751,-1678.76,0.00018587,2]
[408420451,1773595831761,-2.78422748,0.00018822,2]
[408420452,1773595831779,-163.87577252,0.00018822,2]
[408420453,1773595831788,-380.14422748,0.00019054,2]
[408420455,1773595831813,-1619.85577252,0.00019054,2]
[408420456,1773595831823,-776.226152,0.0001915,2]
[408420457,1773595831834,-902.533848,0.0001915,2]
[408420458,1773595831844,-166.66,0.00019195,2]
[408420459,1773595831853,-7951.96,0.00019339,2]
[408420461,1773595831863,-1002.24584653,0.00019499,2]
[408420462,1773595831873,-2000.0,0.000195,2]
[408420464,1773595831883,-166.66,0.00019567,2]
[408420465,1773595831893,-2000.0,0.000196,2]
[408420466,1773595831902,-200.0,0.000197,7]
[408420467,1773595831911,-2000.0,0.000197,2]
[408420468,1773595831921,-1678.76,0.00019713,2]
[408420469,1773595831930,-7437.5053,0.000198,2]
[408420470,1773595831940,-210.8831,0.000198,2]
[408420471,1773595831949,-2500.0,0.000198,2]
[408420472,1773595831959,-4590.13589397,0.000198,2]
[408420473,1773595831968,-500.0,0.000198,7]
[408420474,1773595831978,-2000.0,0.000198,2]
[408420475,1773595831987,-600.0,0.00019826,2]
[408420476,1773595831997,-500.0,0.00019873,2]
[408420477,1773595832006,-524.24576923,0.00019899,2]
[408420478,1773595832016,-505.11042476,0.00019899,2]
[408420479,1773595832025,-502.29808326,0.00019899,2]
[408420480,1773595832035,-500.0,0.00019899,2]
[408420481,1773595832045,-500.0,0.00019899,2]
[408420482,1773595832055,-323.79,0.00019899,2]
[408420483,1773595832065,-500.0,0.00019899,2]
[408420484,1773595832075,-500.0,0.00019899,2]
[408420485,1773595832087,-1798.35593217,0.00019899,2]
[408420486,1773595832098,-500.0,0.00019899,2]
[408420487,1773595832107,-500.0,0.00019899,2]
[408420488,1773595832117,-500.0,0.00019899,2]
[408420489,1773595832127,-500.0,0.00019899,2]
[408420490,1773595832136,-500.0,0.00019899,2]
[408420491,1773595832146,-500.0,0.00019899,2]
[408420492,1773595832156,-500.0,0.00019899,2]
[408420493,1773595832165,-500.0,0.00019899,2]
[408420494,1773595832175,-500.0,0.00019899,2]
[408420495,1773595832184,-500.0,0.00019899,2]
[408420496,1773595832194,-500.0,0.00019899,2]
[408420497,1773595832204,-500.0,0.00019899,2]
[408420498,1773595832213,-500.0,0.00019899,2]
[408420499,1773595832222,-500.0,0.00019899,2]
[408420500,1773595832231,-500.0,0.00019899,2]
[408420501,1773595832240,-500.0,0.00019899,2]
[408420502,1773595832250,-500.0,0.00019899,2]
[408420503,1773595832260,-500.0,0.00019899,2]
[408420504,1773595832269,-500.0,0.00019899,2]
[408420505,1773595832278,-90.07475821,0.00019899,2]
[408420685,1773595839883,-409.92524179,0.00019899,2]
[408420687,1773595839892,-500.0,0.00019899,2]
[408420689,1773595839901,-500.0,0.00019899,2]
[408420691,1773595839910,-500.0,0.00019899,2]
[408420693,1773595839919,-500.0,0.00019899,2]
[408420695,1773595839930,-500.0,0.00019899,2]
[408420697,1773595839939,-500.0,0.00019899,2]
[408420699,1773595839948,-500.0,0.00019899,2]
[408420701,1773595839957,-500.0,0.00019899,2]
[408420703,1773595839966,-500.0,0.00019899,2]
[408420705,1773595839975,-500.0,0.00019899,2]
[408420707,1773595839984,-500.0,0.00019899,2]
[408420709,1773595839994,-500.0,0.00019899,2]
[408420711,1773595840003,-500.0,0.00019899,2]
[408420713,1773595840012,-432.35127618,0.00019899,2]
[408420715,1773595840021,-500.0,0.00019899,2]
[408420717,1773595840031,-500.0,0.00019899,2]
[408420719,1773595840040,-500.0,0.00019899,2]
[408420721,1773595840050,-500.0,0.00019899,2]
[408420723,1773595840064,-500.0,0.00019899,2]
[408420726,1773595840075,-500.0,0.00019899,2]
[408420728,1773595840085,-500.0,0.00019899,2]
[408420730,1773595840094,-500.0,0.00019899,2]
[408420732,1773595840103,-500.0,0.00019899,2]
[408420734,1773595840113,-500.0,0.00019899,2]
[408420736,1773595840122,-500.0,0.00019899,2]
[408420738,1773595840130,-500.0,0.00019899,2]
[408420740,1773595840139,-500.0,0.00019899,2]
[408420742,1773595840148,-500.0,0.00019899,2]
[408420744,1773595840157,-500.0,0.00019899,2]
[408420746,1773595840167,-500.0,0.00019899,2]
[408420748,1773595840176,-450.0,0.00019899,2]
[408420750,1773595840186,-500.0,0.00019899,2]
[408420752,1773595840195,-500.0,0.00019899,2]
[408420754,1773595840204,-500.0,0.00019899,2]
[408420756,1773595840213,-500.0,0.00019899,2]
[408420758,1773595840222,-500.0,0.00019899,2]
[408420760,1773595840231,-500.0,0.00019899,2]
[408420762,1773595840240,-500.0,0.00019899,2]
[408420764,1773595840249,-500.0,0.00019899,2]
[408420766,1773595840258,-500.0,0.00019899,2]
[408420768,1773595840267,-500.0,0.00019899,2]
[408420770,1773595840276,-500.0,0.00019899,2]
[408420772,1773595840286,-500.0,0.00019899,2]
[408420774,1773595840295,-500.0,0.00019899,2]
[408420776,1773595840304,-500.0,0.00019899,2]
[408420778,1773595840313,-500.0,0.00019899,2]
[408420780,1773595840322,-189396.8208,0.000199,2]
[408420782,1773595840331,-1149.03874453,0.000199,6]
[408420784,1773595840339,-3163.93359692,0.000199,6]
[408420786,1773595840348,-2608.5115342,0.000199,6]
[408420788,1773595840357,-1000.0,0.000199,2]
[408420790,1773595840366,-159.05938086,0.000199,2]
[408420792,1773595840376,-800.0,0.000199,7]
[408420794,1773595840385,-5000.0,0.000199,2]
[408420796,1773595840394,-297.01217445,0.00019973,2]
[408420798,1773595840403,-398.50152088,0.00019973,2]
[408420800,1773595840412,-500.0,0.00019973,2]
[408420802,1773595840421,-502.15971815,0.00019973,2]
[408420804,1773595840430,-500.0,0.00019973,2]
[408420806,1773595840439,-503.38689144,0.00019973,2]
[408420808,1773595840449,-500.0,0.00019973,2]
[408420810,1773595840457,-502.0907168,0.00019973,2]
[408420811,1773595840470,-500.0,0.00019973,2]
[408420814,1773595840480,-283.92312536,0.00019973,2]
[408420815,1773595840490,-500.0,0.00019973,2]
[408420817,1773595840499,-500.0,0.00019973,2]
[408420819,1773595840508,-500.0,0.00019973,2]
[408420821,1773595840517,-503.67175726,0.00019973,2]
[408420824,1773595840527,-501.74189694,0.00019973,2]
[408420826,1773595840536,-500.0,0.00019973,2]
[408420828,1773595840545,-151.0,0.00019997,2]
[408420830,1773595840554,-151.0,0.00019997,2]
[408420832,1773595840563,-226.38599362,0.00019997,2]
[408420834,1773595840572,-326.8257236,0.00019998,2]
[408420835,1773595840582,-300.0,0.00019999,2]
[408420838,1773595840591,-300.0,0.00019999,2]
[408420839,1773595840600,-666.0,0.00019999,2]
[408420841,1773595840610,-1712.27356767,0.00019999,5]
[408420843,1773595840619,-500.0,0.00019999,2]
[408420845,1773595840630,-500.0,0.00019999,2]
[408420847,1773595840640,-500.0,0.00019999,2]
[408420850,1773595840650,-531.39263306,0.00019999,2]
[408420852,1773595840660,-500.0,0.00019999,2]
[408420854,1773595840669,-500.0,0.00019999,2]
[408420856,1773595840679,-500.0,0.00019999,2]
[408420858,1773595840688,-500.0,0.00019999,2]
[408420860,1773595840698,-500.0,0.00019999,2]
[408420862,1773595840708,-503.87098244,0.00019999,2]
[408420864,1773595840717,-500.0,0.00019999,2]
[408420866,1773595840728,-441.95742011,0.00019999,2]
[408420868,1773595840740,-500.0,0.00019999,2]
[408420871,1773595840749,-328.32549041,0.00019999,2]
[408420873,1773595840759,-500.0,0.00019999,2]
[408420875,1773595840769,-500.0,0.00019999,2]
[408420877,1773595840778,-500.0,0.00019999,2]
[408420879,1773595840788,-279.23447849,0.00019999,2]
[408420880,1773595840799,-500.0,0.00019999,2]
[408420883,1773595840812,-170.35217325,0.00019999,2]
[408420885,1773595840822,-79027.22644167,0.0002,2]
[408420887,1773595840839,-397.020002,0.0002,2]
[408420889,1773595840851,-4293.11368542,0.0002,2]
[408420899,1773595840928,-85381.75423686,0.0002,2]
[408420901,1773595840939,-43140.37934232,0.0002,2]
[408421135,1773595843101,-858.87950471,0.000199,2]
[408421384,1773595845652,-1141.12049529,0.000199,2]
[408421386,1773595845663,-3856.39116371,0.0002,2]
[408421389,1773595845674,-3145.76343513,0.0002,2]
[408421409,1773595845919,-12864.1316247,0.0002,2]
[408421416,1773595845975,-310.25882034,0.0002,2]
[408421440,1773595846185,-468.13340575,0.0002,2]
[408421856,1773596794098,-420.48760044,0.00016284,2]
[408421857,1773596831127,-245.91244769,0.00016284,2]
[408421858,1773596842086,-396.5155496,0.00016284,2]
[408421859,1773596844089,-415.91440227,0.00016284,2]
[408421860,1773596844112,-70.38770826,0.00016712,2]
[408421861,1773596963077,-96.27229174,0.00016712,2]
[408421862,1773596963098,-501.84684241,0.00017,2]
[408421863,1773596963124,-519.0,0.00017,2]
[408421864,1773596963146,-250.0,0.00017912,2]